[Event "Romanian GP Final KO 2023"]
[Site "Alba Iulia"]
[Date "2023.12.05"]
[Round "1.1"]
[White "Parligras, Mircea-Emilian"]
[Black "Deac, Bogdan-Daniel"]
[Result "1/2-1/2"]
[ECO "D37"]
[WhiteElo "2539"]
[BlackElo "2690"]
[Annotator "TA"]
[PlyCount "159"]
[EventDate "2023.12.04"]
[EventType "k.o."]
[EventCountry "ROU"]
[SourceTitle "playchess.com"]
[Source "ChessBase"]
[SourceQuality "1"]
[TimeControl "900+5"]

{[%evp 9,159,26,37,32,38,33,25,27,39,43,63,54,60,70,66,36,70,43,55,-8,-13,-13,-14,-20,-25,-17,0,0,0,-18,-23,-24,-12,-27,0,0,2,-8,0,-20,-25,-25,-25,-32,0,0,0,-25,-25,-25,-25,-33,-33,-33,-33,-33,-33,-33,-33,-33,-33,-33,-33,-42,-33,-49,-49,-49,-52,-52,-56,-63,-63,-63,-63,-63,-63,-63,-7,-26,-7,-26,-7,-26,-26,-26,-26,-26,-26,-26,-26,-26,-26,-26,-26,-26,-26,-26,-26,-26,-26,-26,-26,-26,-26,-26,-26,-26,-26,-26,-26,-26,-18,-18,0,-26,-26,-26,-26,-26,-26,-26,-26,-26,-26,-26,-26,-26,-26,-26,-26,-26,-26,-26,-26,-26,-26,-26,-26,-26,0,-26,-25,-25,-25,-25,0,0,0,0,0,0]} 1. d4 {[%emt 0:00:01]} Nf6 {[%emt 0:00:02]} 2. c4 {[%emt 0:00:02]} e6 {[%emt 0:00:01]} 3. Nf3 {[%emt 0:00:02]} d5 {[%emt 0:00:03]} 4. Nc3 {[%emt 0:00:02]} h6 {[%emt 0:00:02]} 5. g3 {[%emt 0:00:21]} Nc6 {[%emt 0:01:13]} 6. Bg2 {[%emt 0:00:05] D37: Queen's Gambit Declined: 5 Bf4.} Bd6 {[%emt 0:00:02]} 7. O-O {[%emt 0:00:03]} O-O {[%emt 0:00:03]} 8. b3 {[%emt 0:00:02] White has an edge.} b6 {[%emt 0:00:16]} 9. Bb2 {[%emt 0:00:20]} Bb7 {[%emt 0:00:02]} 10. Rc1 {[%emt 0:00:37]} a6 {[%emt 0:00:22]} 11. e3 {[%emt 0:01:08]} Re8 {[%emt 0:02:04] [#]} 12. Re1 $146 {[%emt 0:01:50]} ({Predecessor:} 12. Ne2 Na5 13. Ne5 dxc4 14. Bxb7 Nxb7 15. Nxc4 Rc8 16. Qd3 b5 17. Nxd6 cxd6 18. Rxc8 Qxc8 {½-½ Yarmolyuk,Y (2134)-Dehaybe,A (2130) RA-2012-0-00205}) 12... Na5 {[%emt 0:01:13]} 13. Qe2 {[%emt 0:01:57]} dxc4 {[%emt 0:00:47]} 14. e4 {[%emt 0:02:06]} (14. bxc4 $14 c5 15. d5) 14... Bb4 $1 $11 {[%emt 0:00:03]} ({Resist} 14... cxb3 15. e5 $16) 15. e5 {[%emt 0:00:09]} Nd5 {[%emt 0:00:07]} 16. bxc4 {[%emt 0:00:05]} Nxc3 {[%emt 0:00:02]} 17. Bxc3 {[%emt 0:00:01]} Bxc3 {[%emt 0:05:51]} 18. Rxc3 {[%emt 0:00:02]} Qe7 {[%emt 0:00:01]} 19. Nd2 {[%emt 0:02:28]} Bxg2 {[%emt 0:00:33]} 20. Kxg2 {[%emt 0:00:02]} Rad8 {[%emt 0:00:44]} 21. Rd3 {[%emt 0:01:34]} b5 {[%emt 0:00:18]} 22. cxb5 {[%emt 0:00:47]} axb5 {[%emt 0:00:01]} 23. Rc1 {[%emt 0:00:10]} Rd7 {[%emt 0:01:57]} 24. Rdc3 {[%emt 0:01:14]} c6 {[%emt 0:00:33]} 25. Nb3 {[%emt 0:00:30]} Nc4 {[%emt 0:00:32]} 26. Nd2 {[%emt 0:00:18]} Na5 {[%emt 0:00:15]} 27. Nb3 {[%emt 0:00:01]} Nc4 {[%emt 0:00:03]} 28. Nd2 {[%emt 0:00:02]} Nxd2 {[%emt 0:00:02]} 29. Qxd2 {[%emt 0:00:01]} Qd8 {[%emt 0:00:05]} 30. Rxc6 {[%emt 0:00:21]} Rxd4 {[%emt 0:00:01]} 31. Qe3 {[%emt 0:00:26]} Qd5+ {[%emt 0:00:02]} 32. Qf3 $1 {[%emt 0:00:35]} Qxe5 {[%emt 0:00:15]} (32... Qxf3+ {simplifies} 33. Kxf3 g5 34. R6c5 Rb8) 33. Rc7 {[%emt 0:00:19]} Qf6 {[%emt 0:00:07]} 34. Qxf6 {[%emt 0:00:03]} gxf6 $15 {[%emt 0:00:01][%mdl 4096] Endgame KRR-KRR} 35. Rb7 {[%emt 0:00:01]} Ra4 {[%emt 0:00:01]} 36. Rc2 {[%emt 0:00:10]} b4 {[%emt 0:00:10]} 37. Rb2 {[%emt 0:00:01]} Rea8 {[%emt 0:00:01]} 38. R7xb4 {[%emt 0:00:02]} Rxb4 {[%emt 0:00:02]} 39. Rxb4 {[%emt 0:00:01]} Rxa2 {[%emt 0:00:01] KR-KR} 40. g4 {[%emt 0:00:07]} Ra5 {[%emt 0:00:10]} 41. h3 {[%emt 0:00:05]} h5 {[%emt 0:00:08]} 42. Kg3 {[%emt 0:00:03]} Kg7 {[%emt 0:00:02]} 43. Rb8 {[%emt 0:00:02]} f5 {[%emt 0:00:15]} (43... Ra3+ $15 44. Kg2 h4) 44. f3 {[%emt 0:00:04]} Rc5 {[%emt 0:00:04]} 45. Ra8 {[%emt 0:00:01]} Rb5 {[%emt 0:00:04]} 46. Rc8 {[%emt 0:00:01]} Kf6 {[%emt 0:00:07]} 47. Rh8 $1 {[%emt 0:00:08]} hxg4 {[%emt 0:00:03]} 48. hxg4 {[%emt 0:00:02]} fxg4 {[%emt 0:00:05]} 49. Kxg4 {[%emt 0:00:03]} Rb4+ {[%emt 0:00:01]} 50. Kg3 {[%emt 0:00:02]} Kg5 {[%emt 0:00:03]} 51. Rg8+ {[%emt 0:00:04]} Kf5 {[%emt 0:00:02]} 52. Rf8 {[%emt 0:00:02]} f6 {[%emt 0:00:01]} 53. Ra8 {[%emt 0:00:04]} Rb5 {[%emt 0:00:13]} 54. Ra4 {[%emt 0:00:04]} e5 {[%emt 0:00:05]} 55. Rc4 {[%emt 0:00:08]} Rd5 {[%emt 0:00:02]} 56. Ra4 {[%emt 0:00:02]} Rd4 {[%emt 0:00:15]} 57. Ra8 {[%emt 0:00:10]} Rd3 {[%emt 0:00:03]} 58. Ra4 {[%emt 0:00:12]} Re3 {[%emt 0:00:04]} 59. Rb4 {[%emt 0:00:19]} Kg6 {[%emt 0:00:08]} 60. Rg4+ {[%emt 0:00:02]} Kh5 {[%emt 0:00:02] [#] aiming for ...f5.} 61. Rh4+ {[%emt 0:00:02]} Kg6 {[%emt 0:00:01]} (61... Kg5 $5 {[%cal Re3f3]} 62. Rg4+ Kf5 $15) 62. Rg4+ {[%emt 0:00:00]} Kf7 {[%emt 0:00:02]} 63. Ra4 {[%emt 0:00:02]} f5 {[%emt 0:00:07] Threatens to win with ...e4.} 64. Kf2 {[%emt 0:00:05] [#] Threatening mate with Ra7+.} Rd3 {[%emt 0:00:01]} 65. Ra6 {[%emt 0:00:09]} Ke7 {[%emt 0:00:02]} 66. Ke2 {[%emt 0:00:07]} Rd6 {[%emt 0:00:02]} 67. Ra5 {[%emt 0:00:01]} Kf6 {[%emt 0:00:02]} 68. Kf2 {[%emt 0:00:07]} Rb6 {[%emt 0:00:12]} 69. Rc5 {[%emt 0:00:03]} Rb2+ {[%emt 0:00:01]} 70. Kg3 {[%emt 0:00:20]} f4+ {[%emt 0:00:03]} 71. Kh3 $1 {[%emt 0:00:01]} Rf2 {[%emt 0:00:10]} 72. Rc3 {[%emt 0:00:03]} Kf5 {[%emt 0:00:20]} 73. Ra3 {[%emt 0:00:05]} Kg5 {[%emt 0:00:05]} 74. Rb3 {[%emt 0:00:04]} Kf6 {[%emt 0:00:04]} 75. Ra3 {[%emt 0:00:03]} Re2 {[%emt 0:00:07]} 76. Ra6+ {[%emt 0:00:12]} Kf5 {[%emt 0:00:01]} 77. Ra8 {[%emt 0:00:06]} e4 {[%emt 0:00:06]} 78. Ra5+ {[%emt 0:00:04] The position is equal.} Kf6 {[%emt 0:00:05]} 79. fxe4 {[%emt 0:00:02]} Rxe4 {[%emt 0:00:05]} 80. Kg4 {[%emt 0:00:25] Weighted Error Value: White=0.06 (flawless) /Black=0.06 (flawless)} 1/2-1/2

[Event "Romanian GP Final KO 2023"]
[Site "Alba Iulia"]
[Date "2023.12.05"]
[Round "1.1"]
[White "Kantor, Gergely"]
[Black "Chigaev, Maksim"]
[Result "1-0"]
[ECO "E94"]
[WhiteElo "2527"]
[BlackElo "2626"]
[Annotator "TA"]
[PlyCount "105"]
[EventDate "2023.12.04"]
[EventType "k.o."]
[EventCountry "ROU"]
[SourceTitle "playchess.com"]
[Source "ChessBase"]
[SourceQuality "1"]
[TimeControl "900+5"]

{[%evp 15,105,40,32,31,40,25,33,27,47,35,61,23,45,41,60,50,60,50,50,52,55,53,52,69,65,59,58,62,50,60,80,0,0,0,0,0,0,0,0,0,0,-8,-8,-8,-8,-41,0,0,0,-5,0,0,0,0,0,8,8,0,341,341,329,213,209,209,202,195,252,252,210,69,231,232,207,208,157,156,380,391,510,501,6036,5648,29998,787,689,637,29966,29967,29991,29976,29978,29978]} 1. d4 {[%emt 0:00:02]} Nf6 {[%emt 0:00:02]} 2. c4 {[%emt 0:00:01]} g6 {[%emt 0:00:02]} 3. Nc3 {[%emt 0:00:06]} Bg7 {[%emt 0:00:02]} 4. e4 {[%emt 0:00:04]} d6 {[%emt 0:00:01]} 5. Nf3 {[%emt 0:00:05]} O-O {[%emt 0:00:04]} 6. Be2 {[%emt 0:00:04]} e5 {[%emt 0:00:18]} 7. O-O {[%emt 0:00:05]} Bg4 {[%emt 0:00:42]} 8. d5 {[%emt 0:00:47]} a5 {[%emt 0:00:21]} 9. Be3 {[%emt 0:00:06] E94: King's Indian: Classical: 6 Be2 e5 7 0-0: Various Black 7th moves.} Na6 {[%emt 0:00:04]} 10. a3 {[%emt 0:00:24]} Bd7 {[%emt 0:01:05]} 11. Nd2 {[%emt 0:00:05] White is slightly better.} h5 {[%emt 0:00:23]} 12. h3 $1 {[%emt 0:02:39][%mdl 4] is currently scoring better than 12.f3.} Nh7 {[%emt 0:00:03]} 13. Qc2 {[%emt 0:01:18]} Bf6 {[%emt 0:02:01]} 14. Nf3 {[%emt 0:02:41] [#]} b6 $146 {[%emt 0:00:59]} ({Predecessor:} 14... Ng5 15. Qd2 Nxf3+ 16. Bxf3 Nc5 17. Bd1 a4 18. Bc2 b6 19. Rae1 Qe7 20. Qd1 Rfb8 {1-0 Mendonca,L (2551)-Kotronias,V (2465) Hamburg HSK GM 2022 (4)}) 15. Rab1 {[%emt 0:00:17]} Ng5 {[%emt 0:00:44]} 16. b4 {[%emt 0:00:24]} Nxf3+ {[%emt 0:00:29]} 17. Bxf3 {[%emt 0:00:03]} Bg5 {[%emt 0:00:02]} 18. Qd2 {[%emt 0:00:27]} Bxe3 {[%emt 0:00:21]} 19. Qxe3 {[%emt 0:00:03]} Qf6 {[%emt 0:01:01]} 20. Be2 {[%emt 0:00:14]} Qf4 {[%emt 0:01:27]} 21. Qxf4 {[%emt 0:01:52]} exf4 {[%emt 0:00:02]} 22. h4 {[%emt 0:00:35]} Kg7 {[%emt 0:01:03] [#]} 23. c5 {[%emt 0:00:57]} axb4 $11 {[%emt 0:02:56]} 24. axb4 {[%emt 0:00:02]} bxc5 {[%emt 0:00:02]} 25. Bxa6 {[%emt 0:00:02]} Rxa6 {[%emt 0:00:11]} 26. bxc5 {[%emt 0:00:02]} dxc5 {[%emt 0:00:01]} 27. Rb7 {[%emt 0:00:25]} Rc8 {[%emt 0:00:04]} 28. Rc1 {[%emt 0:02:26]} Kf6 {[%emt 0:01:39]} 29. Ne2 {[%emt 0:00:48]} Ke5 {[%emt 0:00:01]} (29... Rb6 $5 30. Ra7 $8 Ke5 $11) 30. f3 {[%emt 0:00:15]} Rb6 {[%emt 0:00:39]} 31. Ra7 {[%emt 0:00:06]} Rb2 {[%emt 0:00:01]} 32. Nc3 {[%emt 0:00:10]} Kd6 {[%emt 0:00:31]} 33. Ra6+ {[%emt 0:00:06]} Rb6 {[%emt 0:00:02]} 34. Ra5 {[%emt 0:00:02]} f6 {[%emt 0:00:15]} 35. Ne2 {[%emt 0:00:01][%csl LRc5,LRf4]} g5 {[%emt 0:00:11]} 36. Raxc5 {[%emt 0:00:03]} (36. hxg5 {with more complications.} fxg5 37. Raxc5 Rcb8 38. Rxc7 R8b7 39. Rxb7 Rxb7 40. Nd4) 36... c6 $2 {[%emt 0:00:06][%mdl 8192]} (36... Rb2 $11 37. R5c2 Rxc2 38. Rxc2 Rb8) 37. hxg5 $18 {[%emt 0:00:03]} fxg5 {[%emt 0:00:02]} 38. Nd4 {[%emt 0:00:01] Prevents Rb5.} cxd5 {[%emt 0:00:09]} 39. Rxc8 {[%emt 0:00:03]} Bxc8 {[%emt 0:00:01]} 40. Rxc8 {[%emt 0:00:01] Strongly threatening Rd8+.} dxe4 {[%emt 0:00:02]} (40... Rb1+ {is a better defense.} 41. Kf2 dxe4 42. fxe4 g4) 41. fxe4 {[%emt 0:00:07][%mdl 4096] Endgame KRN-KR} g4 {[%emt 0:00:07] [#]} 42. Nf5+ {[%emt 0:00:21]} (42. Re8 $1 $18 {[%cal Re8e6] aiming for Re6+.} Rb2 43. Kf1) 42... Ke5 {[%emt 0:00:09]} (42... Ke6 $14) 43. Re8+ {[%emt 0:00:01]} Kf6 {[%emt 0:00:01]} 44. Nd4 {[%emt 0:00:12]} Rb1+ {[%emt 0:00:02]} 45. Kf2 {[%emt 0:00:03] e5+ is the strong threat.} Rb2+ $2 {[%emt 0:00:02] Black cannot hold the game after this.} (45... h4 $16) 46. Ne2 {[%emt 0:00:07]} Kg5 {[%emt 0:00:17]} 47. Re5+ {[%emt 0:00:04]} Kh4 {[%emt 0:00:01]} (47... Kh6 $142 48. Rf5 h4 49. Rxf4 Kg5) 48. Rf5 {[%emt 0:00:01][%cal Oe4e5] Hoping for e5!} f3 {[%emt 0:00:07]} 49. gxf3 {[%emt 0:00:07]} (49. g3+ $142 Kh3 50. Rxh5#) 49... g3+ {[%emt 0:00:01]} 50. Ke3 {[%emt 0:00:09]} Rb3+ {[%emt 0:00:13]} 51. Kf4 {[%emt 0:00:03] White mates.} g2 {[%emt 0:00:01]} 52. Rg5 {[%emt 0:00:06]} g1=Q {[%emt 0:00:09]} 53. Rxg1 {[%emt 0:00:05] Weighted Error Value: White=0.13 (very precise) /Black=0.64} 1-0

[Event "Romanian GP Final KO 2023"]
[Site "Alba Iulia"]
[Date "2023.12.05"]
[Round "1.1"]
[White "Petkov, Momchil"]
[Black "Nanu, Costica-Ciprian"]
[Result "1-0"]
[ECO "A46"]
[WhiteElo "2499"]
[BlackElo "2524"]
[Annotator "RC"]
[PlyCount "91"]
[EventDate "2023.12.04"]
[EventType "k.o."]
[EventCountry "ROU"]
[SourceTitle "playchess.com"]
[Source "ChessBase"]
[SourceQuality "1"]
[TimeControl "900+5"]

1. d4 {[%emt 0:00:02]} Nf6 {[%emt 0:00:01]} 2. Bf4 {[%emt 0:00:01]} e6 {[%emt 0:00:02]} 3. Nf3 {[%emt 0:00:04]} c5 {[%emt 0:00:02]} 4. e3 {[%emt 0:00:02]} cxd4 {[%emt 0:00:02]} 5. exd4 {[%emt 0:00:02]} Be7 {[%emt 0:00:01]} 6. h3 {[%emt 0:00:03]} O-O {[%emt 0:00:02]} 7. c3 {[%emt 0:00:08]} b6 {[%emt 0:00:02]} 8. a4 {[%emt 0:00:02]} Bb7 {[%emt 0:00:11]} 9. Nbd2 {[%emt 0:00:03]} a6 {[%emt 0:00:04]} 10. Bd3 {[%emt 0:00:03]} d6 {[%emt 0:00:01]} 11. O-O {[%emt 0:15:30]} Nbd7 12. Bh2 {[%emt 0:00:00]} Re8 {[%emt 0:00:02]} 13. Ne1 {[%emt 0:00:00]} Nf8 {[%emt 0:00:17]} 14. Nc2 {[%emt 0:00:00]} Ng6 {[%emt 0:00:08]} 15. Ne3 {[%emt 0:00:00]} Bf8 {[%emt 0:00:25]} 16. Qb3 {[%emt 0:00:00]} Nd5 {[%emt 0:00:57]} 17. Rfe1 {[%emt 0:00:00]} Ndf4 {[%emt 0:01:01]} 18. Bxg6 {[%emt 0:00:00]} Nxg6 {[%emt 0:00:01]} 19. Ndc4 {[%emt 0:00:00]} Rb8 {[%emt 0:02:01]} 20. Qxb6 {[%emt 0:00:00]} Qxb6 {[%emt 0:02:17]} 21. Nxb6 {[%emt 0:00:00]} Bxg2 {[%emt 0:00:07]} 22. Nd7 {[%emt 0:00:00]} Bxh3 {[%emt 0:00:02]} 23. Nxb8 {[%emt 0:00:00]} Rxb8 {[%emt 0:00:02]} 24. Nc4 {[%emt 0:00:00]} Nh4 {[%emt 0:00:59]} 25. Re3 {[%emt 0:00:00]} Bg4 {[%emt 0:00:02]} 26. b4 {[%emt 0:00:00]} Nf5 {[%emt 0:00:11]} 27. Re4 {[%emt 0:00:00]} h5 {[%emt 0:01:41]} 28. Ne3 {[%emt 0:00:00]} Bf3 {[%emt 0:00:42]} 29. Rf4 {[%emt 0:00:00]} Ba8 {[%emt 0:00:13]} 30. Nxf5 {[%emt 0:00:00]} g5 {[%emt 0:00:05]} 31. Re4 {[%emt 0:00:00]} exf5 {[%emt 0:00:54]} 32. Re2 {[%emt 0:00:08]} f4 {[%emt 0:00:01]} 33. b5 {[%emt 0:00:41]} a5 {[%emt 0:00:20]} 34. Rae1 {[%emt 0:00:03]} Bd5 {[%emt 0:00:10]} 35. Re8 {[%emt 0:00:02]} Rb7 {[%emt 0:04:54]} 36. Rc8 {[%emt 0:00:38]} Kg7 {[%emt 0:00:00]} 37. c4 {[%emt 0:00:04]} Bf3 {[%emt 0:00:00]} 38. c5 {[%emt 0:00:24]} dxc5 {[%emt 0:00:00]} 39. dxc5 {[%emt 0:00:01]} Rd7 {[%emt 0:00:00]} 40. c6 {[%emt 0:00:06]} Rd2 {[%emt 0:00:00]} 41. Rxf8 {[%emt 0:00:15]} Kxf8 {[%emt 0:00:00]} 42. Rc1 {[%emt 0:00:02]} Ra2 {[%emt 0:00:00]} 43. b6 {[%emt 0:00:07]} Rxa4 {[%emt 0:00:00]} 44. c7 {[%emt 0:00:03]} Bb7 {[%emt 0:00:00]} 45. c8=Q+ {[%emt 0:00:01]} Bxc8 {[%emt 0:00:00]} 46. Rxc8+ {[%emt 0:00:20]} 1-0

[Event "Romanian GP Final KO 2023"]
[Site "Alba Iulia"]
[Date "2023.12.05"]
[Round "1.1"]
[White "Ardelean, George-Catalin"]
[Black "Gavrilescu, David"]
[Result "0-1"]
[ECO "D02"]
[WhiteElo "2433"]
[BlackElo "2534"]
[Annotator "TA"]
[PlyCount "66"]
[EventDate "2023.12.04"]
[EventType "k.o."]
[EventCountry "ROU"]
[SourceTitle "playchess.com"]
[Source "ChessBase"]
[SourceQuality "1"]
[TimeControl "900+5"]

{[%evp 9,66,0,16,8,14,0,0,0,53,33,111,100,122,127,117,25,16,0,0,0,0,0,0,-15,-8,-7,0,-118,-121,-134,-31,-18,-21,-17,0,-250,-242,-243,-251,-236,-36,-257,-259,-250,-229,-231,-110,-228,-24,-101,-45,-177,-169,-465,-467,-438,-458,-438,-431]} 1. d4 {[%emt 0:00:03]} d5 {[%emt 0:00:06]} 2. Nf3 {[%emt 0:00:01]} Nf6 {[%emt 0:00:14]} 3. Bf4 {[%emt 0:00:02]} c5 {[%emt 0:00:12]} 4. e3 {[%emt 0:00:02]} Nc6 {[%emt 0:00:04]} 5. Nbd2 {[%emt 0:00:05]} Bg4 {[%emt 0:00:49][%cal Bc8g4,Bg4h5,Bh5g6][%mdl 32]} 6. h3 {[%emt 0:02:24] D02: 1 d4 d5 2 Nf3 sidelines, including 2...Nf6 3 g3 and 2...Nf6 3 Bf4.} Bh5 {[%emt 0:00:19]} 7. g4 {[%emt 0:01:53]} Bg6 {[%emt 0:00:12]} 8. Bb5 {[%emt 0:00:05] The position is equal.} cxd4 {[%emt 0:03:05]} (8... e6 $11) 9. Nxd4 $14 {[%emt 0:01:20]} Qb6 {[%emt 0:01:01]} (9... Rc8 $1 $14) 10. c4 {[%emt 0:00:03] [#] a4 is the strong threat.} e6 $146 {[%emt 0:02:17]} ({Predecessor:} 10... e5 11. Bxe5 Nd7 12. Bg3 Bb4 13. O-O O-O 14. N2f3 a6 15. Ba4 Nf6 16. cxd5 Nxd5 17. Nxc6 bxc6 {½-½ Csiki,E (2358)-Tyurin,A (2397) Budapest Vezerkepzo GM 04 2023 (6)}) 11. Qa4 {[%emt 0:00:50][%cal Rd4c6] Against Bb4} Rc8 {[%emt 0:00:04]} 12. Rc1 {[%emt 0:03:08]} ({White should try} 12. b4 $1 $16 Bd3 13. c5 Bxb5 14. Nxb5) 12... Bc5 $1 $11 {[%emt 0:01:09]} 13. b4 {[%emt 0:01:55]} Bxd4 {[%emt 0:01:00]} 14. c5 {[%emt 0:00:05]} Bxc5 {[%emt 0:02:12]} 15. bxc5 {[%emt 0:00:01]} Qd8 {[%emt 0:00:01]} 16. Qxa7 {[%emt 0:00:01]} (16. Bd6 $5 {[%cal Ra4a7]}) 16... O-O {[%emt 0:00:08]} 17. Qxb7 {[%emt 0:00:02]} e5 {[%emt 0:00:39]} 18. Bg5 {[%emt 0:00:12]} (18. Bxc6 exf4 19. exf4 Bd3 $19) (18. Bg3 $11 Na5 19. Qa6) 18... Nb4 $1 $17 {[%emt 0:00:07] Threatens to win with ...Rb8.} 19. a4 {[%emt 0:01:09]} Na2 {[%emt 0:01:15] Excellent horsemanship.} (19... Bd3 $1 $17 {Hoping for ...Rb8.} 20. c6 d4) 20. O-O $15 {[%emt 0:00:23]} Nxc1 {[%emt 0:00:21]} 21. Rxc1 {[%emt 0:00:00]} Qa5 {[%emt 0:00:18]} 22. Nf3 {[%emt 0:02:08]} (22. Nb3 $11 {and White stays safe.} Qb4 23. Bxf6 Qxb3 24. Bxe5) 22... Rc7 $19 {[%emt 0:00:24]} 23. Qa6 {[%emt 0:00:09]} Qxa6 {[%emt 0:00:01]} 24. Bxa6 {[%emt 0:00:01]} Ra8 $2 {[%emt 0:00:01]} (24... Ne4 $19 {And now ...f6 would win.} 25. c6 f6) 25. Bb5 $2 {[%emt 0:00:06]} (25. Bxf6 $1 $15 gxf6 26. Bb5) 25... Ne4 $1 {[%emt 0:00:02]} 26. c6 {[%emt 0:00:14]} f6 {[%emt 0:00:01]} 27. Bh4 {[%emt 0:00:07]} Rb8 {[%emt 0:00:24]} (27... Rac8 $19 {and Black stays clearly on top. Strongly threatening ...Be8.} 28. g5 Be8) 28. Bg3 {[%emt 0:00:44]} (28. Ne1 $17) 28... Nd6 $2 {[%emt 0:00:33]} (28... Nxg3 $19 29. fxg3 Be8) 29. Nd4 {[%emt 0:00:06] [#]} (29. Rc5 $11 {remains equal.}) 29... Bf7 {[%emt 0:00:09]} ({Better is} 29... Be8 $1 $17 30. Kg2 (30. Ne6 Rcc8 $19) 30... Kf7) 30. Ba6 {[%emt 0:00:06] [#]} (30. Nf5 $15 Nxb5 31. axb5 (31. Rb1 $2 Bg6 $19) 31... Rxb5 32. f4) 30... Rb6 $1 $36 {[%emt 0:00:06][%mdl 2048] Black has strong initiative.} ({Inferior is} 30... Nc4 31. Bb5 $15) 31. Nb5 $2 {[%emt 0:00:08]} (31. Bb5) 31... Rcxc6 {[%emt 0:00:03] Black is clearly winning.} (31... Rbxc6 $2 {perishes.} 32. Rf1 Rd7 33. Nxd6 Rxa6 34. Nxf7 Kxf7 35. f4 $19) 32. Rxc6 {[%emt 0:00:05]} Rxc6 {[%emt 0:00:01][%mdl 64] Trapped Piece} 33. Nxd6 {[%emt 0:00:03]} Rxa6 {[%emt 0:00:02] Weighted Error Value: White=0.80/Black=0.35} (33... Rxd6 $2 {is the wrong capture.} 34. Bb5 $19) 0-1

[Event "Romanian GP Final KO 2023"]
[Site "Alba Iulia"]
[Date "2023.12.05"]
[Round "1.1"]
[White "David, Alexandru-Vasile"]
[Black "Lupulescu, Constantin"]
[Result "1/2-1/2"]
[ECO "D04"]
[WhiteElo "2372"]
[BlackElo "2581"]
[Annotator "TA"]
[PlyCount "44"]
[EventDate "2023.12.04"]
[EventType "k.o."]
[EventCountry "ROU"]
[SourceTitle "playchess.com"]
[Source "ChessBase"]
[SourceQuality "1"]
[TimeControl "900+5"]

{[%evp 9,44,30,39,0,18,13,13,18,16,10,25,17,18,10,59,25,31,18,45,27,74,67,93,11,40,26,26,12,49,0,0,0,0,0,0,5,8]} 1. d4 {[%emt 0:00:04]} Nf6 {[%emt 0:00:01]} 2. Nf3 {[%emt 0:00:00]} d5 {[%emt 0:00:00]} 3. e3 {[%emt 0:00:00]} c5 {[%emt 0:00:39]} 4. dxc5 {[%emt 0:00:04]} Qa5+ {[%emt 0:01:41]} 5. Nbd2 {[%emt 0:00:21]} e6 {[%emt 0:01:36]} 6. Bd3 {[%emt 0:00:39] D04: Colle System.} Nbd7 {[%emt 0:01:45]} 7. O-O {[%emt 0:02:18]} Nxc5 {[%emt 0:00:35]} 8. Be2 {[%emt 0:00:20]} Be7 {[%emt 0:00:40] [#]} 9. a3 $146 {[%emt 0:00:06] [#] Hoping for b4.} ({Predecessor:} 9. c4 O-O 10. a3 Nce4 11. b4 Qd8 12. Bb2 Nxd2 13. Nxd2 b6 14. Qb3 Bb7 15. Rfd1 {0-1 Liu,X (2223)-Krush,I (2455) Torch Cup Xiapu 2005 (19)}) 9... Qc7 {[%emt 0:00:12]} 10. c4 {[%emt 0:01:07]} Bd7 {[%emt 0:00:54]} 11. b3 {[%emt 0:00:10] Dodges Ba4} Rd8 {[%emt 0:01:58]} (11... dxc4 $11 12. Bxc4 O-O) 12. Bb2 {[%emt 0:01:01]} dxc4 {[%emt 0:00:13]} 13. Be5 {[%emt 0:00:16]} ({Much worse is} 13. Nxc4 Ba4 14. Bd4 Bxb3 $15) 13... Qc8 {[%emt 0:00:40]} 14. Bxc4 {[%emt 0:01:32]} ({Much weaker is} 14. bxc4 Ba4 15. Qb1 O-O $15) ({Of course not} 14. Nxc4 Ba4 15. Bd4 Nxb3 $15) 14... b5 {[%emt 0:02:04]} (14... Bc6 $11) 15. Be2 $16 {[%emt 0:00:09]} Qb7 {[%emt 0:00:01]} 16. Nd4 {[%emt 0:01:20]} (16. b4 $16 Na4 17. Nb3) 16... O-O {[%emt 0:00:15]} 17. Bf3 {[%emt 0:00:03]} Qb6 {[%emt 0:00:07]} 18. Qe2 {[%emt 0:00:11] Against Nd3} Rc8 {[%emt 0:00:22]} 19. Rac1 {[%emt 0:00:04]} (19. b4 $14 Na4 20. Rac1) 19... a5 $11 {[%emt 0:00:52] The position is equal.} 20. h3 {[%emt 0:01:02]} h6 {[%emt 0:00:14]} 21. Rfd1 {[%emt 0:00:01]} Na6 {[%emt 0:00:26]} 22. Nb1 {[%emt 0:00:20]} Rfd8 {[%emt 0:00:32] Weighted Error Value: White=0.14 (very precise) /Black=0.14 (very precise)} 1/2-1/2